bitfinex/quotes_BTCUSD_20240815
["timestamp","ask_amount","ask_price","bid_price","bid_amount"]
[1723735983077,0.08244319,59609.0,59608.0,0.68623448]
[1723735983284,0.08244319,59609.0,59608.0,1.02175948]
[1723735983951,0.08244319,59609.0,59608.0,0.51467994]
[1723735984157,0.08244319,59609.0,59608.0,0.85020494]
[1723735984735,0.08244319,59609.0,59608.0,0.96877943]
[1723735984954,0.0769,59609.0,59608.0,0.96877943]
[1723735985165,0.0769,59609.0,59608.0,0.85020494]
[1723735985402,0.0802,59616.0,59608.0,0.18294748]
[1723735985585,0.0802,59616.0,59615.0,0.503229]
[1723735985787,0.0802,59621.0,59620.0,0.49876451]
[1723735985995,0.08574209,59621.0,59620.0,0.91764546]
[1723735986206,0.08574209,59621.0,59620.0,1.35160697]
[1723735986407,0.0083,59632.0,59627.0,0.838545]
[1723735986408,0.0779,59628.0,59627.0,0.838545]
[1723735986612,0.0083,59632.0,59627.0,0.25540904]
[1723735986817,0.0083,59632.0,59631.0,1.173886]
[1723735987056,0.0083,59632.0,59631.0,1.68083654]
[1723735987264,0.0083,59632.0,59631.0,1.69110927]
[1723735987520,0.0083,59632.0,59631.0,1.47359608]
[1723735988348,0.0083,59632.0,59631.0,1.4735512]
[1723735988773,0.0083,59632.0,59631.0,1.8089472]
[1723735989289,0.0083,59632.0,59631.0,1.8109472]
[1723735989490,0.0083,59632.0,59631.0,1.8089472]
[1723735989902,0.0083,59632.0,59631.0,1.82071369]
[1723735990330,0.0083,59632.0,59631.0,2.72500569]
[1723735990553,0.0002,59639.0,59637.0,1.943129]
[1723735990691,0.0002,59639.0,59637.0,2.33216804]
[1723735990868,0.0002,59639.0,59637.0,2.6777476]
[1723735991656,0.0002,59639.0,59637.0,2.66753004]
[1723735991829,0.0002,59639.0,59637.0,2.6777476]
[1723735992592,0.0002,59639.0,59637.0,2.24958915]
[1723735992799,0.0002,59639.0,59637.0,1.3555391]
[1723735993197,0.0002,59639.0,59637.0,1.6909011]
[1723735993398,0.0002,59639.0,59637.0,1.3555391]
[1723735994522,0.0002,59639.0,59637.0,0.6848151]
[1723735994745,0.1801,59638.0,59637.0,0.1817721]
[1723735994902,0.1801,59638.0,59637.0,0.01021756]
[1723735994903,0.347778,59638.0,59637.0,0.01021756]
[1723735995154,0.43438127,59638.0,59634.0,0.167688]
[1723735995303,0.26670327,59638.0,59636.0,0.167682]
[1723735995509,0.26670327,59638.0,59637.0,0.6848151]
[1723735995711,0.26670327,59638.0,59637.0,1.0201771]
[1723735996606,0.26670327,59638.0,59637.0,1.3555391]
[1723735996811,0.180926,59638.0,59637.0,1.3555391]
[1723735997802,0.180926,59638.0,59637.0,0.3494531]
[1723735998432,0.68396,59638.0,59637.0,0.01021756]
[1723735998634,0.413404,59638.0,59637.0,0.01021756]
[1723735998789,0.413404,59638.0,59625.0,0.0009086]
[1723735998790,0.167701,59630.0,59625.0,0.0009086]
[1723735999024,0.24992563,59638.0,59625.0,0.1686226]
[1723735999025,0.22737727,59626.0,59625.0,0.1686226]
[1723735999428,0.22737727,59626.0,59625.0,0.5040516]
[1723736000052,0.22737727,59626.0,59625.0,0.8394806]
[1723736000268,0.0768,59626.0,59625.0,1.34646414]
[1723736000452,0.0644,59631.0,59625.0,0.17246314]
[1723736000676,0.0644,59631.0,59625.0,0.0009086]
[1723736000677,0.58891327,59626.0,59625.0,0.0009086]
[1723736000876,0.73421327,59626.0,59625.0,0.0009086]
[1723736001143,1.09263727,59626.0,59625.0,0.0009086]
[1723736001959,1.19817929,59626.0,59625.0,1e-08]
[1723736002882,0.83421327,59626.0,59625.0,1e-08]
[1723736003088,0.49878927,59626.0,59625.0,1e-08]
[1723736003300,0.23107727,59626.0,59625.0,1e-08]
[1723736003503,0.23107727,59626.0,59625.0,0.01032793]
[1723736003711,0.23107727,59626.0,59625.0,0.16771401]
[1723736003922,0.23107727,59626.0,59625.0,0.84889993]
[1723736004131,0.23107727,59626.0,59625.0,1.13888926]
[1723736004132,0.0809,59626.0,59625.0,1.13888926]
[1723736004330,0.08577727,59632.0,59631.0,0.167698]
[1723736004331,0.16667727,59632.0,59631.0,0.167698]
[1723736004550,0.0644,59636.0,59635.0,0.503059]
[1723736004785,0.0644,59636.0,59635.0,0.167686]
[1723736004986,0.0644,59636.0,59635.0,0.34947649]
[1723736005186,0.0809,59637.0,59636.0,0.838417]
[1723736005432,0.0809,59637.0,59636.0,1.00997154]
[1723736005619,0.0809,59637.0,59636.0,1.12221904]
[1723736005874,0.0809,59637.0,59636.0,1.02019829]
[1723736006278,0.100826,59638.0,59637.0,0.503043]
[1723736006453,0.100826,59638.0,59637.0,1.00995954]
[1723736006716,0.100826,59638.0,59637.0,1.0201771]
[1723736009142,0.100826,59638.0,59637.0,1.3555391]
[1723736009346,0.100826,59638.0,59637.0,1.0201771]
[1723736010126,0.100826,59638.0,59637.0,0.51326056]
[1723736010584,0.100826,59638.0,59637.0,1.0201771]
[1723736010802,0.180226,59638.0,59637.0,0.51326056]
[1723736010983,0.180226,59638.0,59637.0,0.01021756]
[1723736011300,0.180226,59638.0,59632.0,0.335386]
[1723736011460,0.347905,59638.0,59637.0,0.01021756]
[1723736011661,0.347905,59638.0,59632.0,0.335386]
[1723736011662,0.0794,59635.0,59625.0,1e-08]
[1723736011866,0.646994,59619.0,59601.0,0.00993556]
[1723736012086,0.503278,59609.0,59594.0,0.067196]
[1723736012288,1.318116,59609.0,59589.0,0.167814]
[1723736012496,1.318116,59609.0,59585.0,0.335651]
[1723736012497,1.42365968,59609.0,59588.0,0.335637]
[1723736012702,1.45985177,59609.0,59590.0,0.335621]
[1723736012916,1.45985177,59609.0,59592.0,0.335611]
[1723736013125,1.45985177,59609.0,59584.0,0.167829]
[1723736013126,0.167817,59589.0,59584.0,0.167829]
[1723736013334,0.0764,59593.0,59592.0,0.167807]
[1723736013540,0.244204,59593.0,59592.0,0.01063164]
[1723736013749,0.244204,59593.0,59583.0,0.335662]
[1723736013750,0.167812,59591.0,59583.0,0.335662]
[1723736013987,0.167812,59591.0,59584.0,0.01070532]
[1723736014236,0.167814,59590.0,59586.0,0.167823]
[1723736014462,0.244205,59593.0,59589.0,0.167815]
[1723736014688,0.244205,59593.0,59588.0,0.335633]
[1723736014689,0.0764,59593.0,59588.0,0.335633]
[1723736014890,0.0764,59593.0,59590.0,0.01065005]
[1723736014891,0.167809,59592.0,59590.0,0.01065005]
[1723736015091,0.0764,59593.0,59590.0,0.335626]
[1723736015317,0.0764,59593.0,59592.0,0.167807]
[1723736015486,0.0764,59593.0,59591.0,0.01064084]
[1723736015701,0.0764,59593.0,59586.0,0.335645]
[1723736015702,0.0764,59593.0,59573.0,0.335719]
[1723736015901,0.0764,59593.0,59576.0,0.067218]
[1723736016102,0.0764,59593.0,59592.0,0.503422]
[1723736016324,0.0764,59593.0,59592.0,0.839037]
[1723736016478,0.0764,59593.0,59589.0,0.335631]
[1723736016695,0.08577727,59592.0,59586.0,0.335648]
[1723736016897,0.08577727,59592.0,59589.0,0.167815]
[1723736017094,0.244206,59593.0,59589.0,0.167815]
[1723736018022,0.244206,59593.0,59585.0,0.33565]
[1723736018023,0.167809,59592.0,59585.0,0.33565]
[1723736018219,0.412009,59593.0,59584.0,0.17155454]
[1723736018220,0.167811,59591.0,59584.0,0.17155454]
[1723736018441,0.167809,59592.0,59588.0,0.167817]
[1723736018667,0.4760091,59593.0,59588.0,0.167817]
[1723736018668,0.167811,59591.0,59588.0,0.167817]
[1723736018868,0.167814,59590.0,59585.0,0.335653]
[1723736019016,0.167812,59591.0,59587.0,0.16782]
[1723736019799,0.167812,59591.0,59588.0,0.167818]
[1723736020003,0.0764,59593.0,59589.0,0.167815]
[1723736020425,0.244205,59593.0,59589.0,0.167815]
[1723736020530,0.244205,59593.0,59590.0,0.167813]
[1723736020756,0.0602,59594.0,59586.0,0.0009086]
[1723736020757,0.247421,59587.0,59586.0,0.0009086]
[1723736021161,0.583064,59587.0,59586.0,0.0009086]
[1723736021788,0.918707,59587.0,59586.0,0.0009086]
[1723736022873,0.0796,59587.0,59586.0,0.3009086]
[1723736023103,0.0796,59587.0,59586.0,0.4687326]
[1723736023337,0.0796,59587.0,59586.0,0.3009086]
[1723736023531,0.0796,59587.0,59586.0,0.4687326]
[1723736023729,0.0796,59587.0,59586.0,0.3009086]
[1723736024327,0.07938615,59587.0,59586.0,0.8043816]
[1723736024599,0.24720715,59587.0,59586.0,0.3009086]
[1723736024825,0.58285015,59587.0,59586.0,0.3009086]
[1723736025029,0.94149315,59587.0,59586.0,0.3009086]
[1723736025257,1.34333615,59587.0,59586.0,0.3009086]
[1723736025488,1.44333615,59587.0,59586.0,0.3009086]
[1723736025754,0.335669,59583.0,59572.0,0.0009097]
[1723736025952,0.16785,59577.0,59573.0,0.16786]
[1723736026069,0.16785,59577.0,59574.0,0.167858]
[1723736026293,0.167851,59577.0,59574.0,0.167858]
[1723736026651,0.167851,59577.0,59573.0,0.33572]
[1723736026652,0.335691,59579.0,59575.0,0.167855]
[1723736026850,0.335695,59578.0,59572.0,0.1687727]
[1723736027014,0.08577727,59574.0,59572.0,0.0009097]
[1723736027215,0.16785,59577.0,59574.0,0.167857]
[1723736027416,0.0751,59576.0,59574.0,0.167858]
[1723736027938,0.410808,59576.0,59572.0,0.0009097]
[1723736028244,0.0751,59576.0,59575.0,0.839277]
[1723736028458,0.335591,59597.0,59575.0,0.839277]
[1723736028459,0.0763,59586.0,59580.0,0.335683]
[1723736028642,0.0763,59586.0,59583.0,0.167831]
[1723736028792,0.0763,59586.0,59583.0,0.335665]
[1723736029221,0.0763,59586.0,59585.0,0.335654]
[1723736029422,0.0763,59586.0,59581.0,0.335673]
[1723736029623,0.167828,59585.0,59581.0,0.167836]
[1723736029968,0.411949,59586.0,59585.0,0.167827]
[1723736029969,0.0763,59586.0,59585.0,0.167827]
[1723736030171,0.0763,59586.0,59584.0,0.16783]
[1723736030301,0.0763,59586.0,59574.0,0.17155454]
[1723736030302,0.0763,59586.0,59585.0,0.167827]
[1723736030859,0.0763,59586.0,59585.0,0.503481]
[1723736031084,0.083,59594.0,59591.0,0.839052]
[1723736031307,0.335525,59608.0,59597.0,0.838967]
[1723736031308,0.1494,59598.0,59597.0,0.838967]
[1723736031491,0.083,59606.0,59597.0,0.17155454]
[1723736031665,0.083,59606.0,59605.0,0.167771]
[1723736031866,0.083,59606.0,59598.0,0.17490989]
[1723736031867,0.083,59606.0,59598.0,0.17155454]
[1723736032081,0.083,59606.0,59588.0,0.335636]
[1723736032082,0.335565,59601.0,59588.0,0.335636]
[1723736032403,0.335554,59603.0,59597.0,0.167791]
[1723736032552,0.167782,59601.0,59598.0,0.16779]
[1723736033101,0.083,59606.0,59605.0,0.167771]
[1723736033352,0.083,59606.0,59584.0,0.664455]
[1723736033353,0.09794,59606.0,59584.0,0.664455]
[1723736033481,0.167782,59601.0,59588.0,0.17155454]
[1723736033673,0.08577727,59597.0,59588.0,0.17155454]
[1723736033899,0.08577727,59597.0,59590.0,0.335625]
[1723736034100,0.08577727,59597.0,59596.0,0.167796]
[1723736035019,0.1,59601.0,59600.0,0.503355]
[1723736035222,0.0813,59602.0,59601.0,0.503346]
[1723736035442,0.0813,59602.0,59601.0,0.83891]
[1723736035664,0.0813,59602.0,59601.0,0.503346]
[1723736036117,0.0813,59602.0,59587.0,0.804843]
[1723736036118,0.0813,59602.0,59592.0,0.335614]
[1723736036323,0.335565,59601.0,59595.0,0.335595]
[1723736036535,0.167785,59600.0,59596.0,0.335592]
[1723736036746,0.167784,59601.0,59597.0,0.167792]
[1723736036978,0.167791,59598.0,59592.0,0.50716554]
[1723736037214,0.0813,59602.0,59586.0,0.335644]
[1723736037215,0.24908,59602.0,59598.0,0.167788]
[1723736037428,0.0813,59602.0,59597.0,0.335583]
[1723736037644,0.0813,59602.0,59593.0,0.50716254]
[1723736037645,0.0813,59602.0,59598.0,0.335578]
[1723736037869,0.0813,59602.0,59601.0,0.167782]
[1723736038082,0.0813,59602.0,59600.0,0.167784]
[1723736038521,0.0813,59602.0,59601.0,0.167782]
[1723736038737,0.0813,59602.0,59601.0,0.503346]
[1723736038933,0.0813,59602.0,59601.0,0.83891]
[1723736039138,0.0813,59602.0,59601.0,0.503346]
[1723736041376,0.1399,59613.0,59612.0,0.503253]
[1723736041507,0.1399,59613.0,59612.0,0.167751]
[1723736041508,0.14544299,59613.0,59612.0,0.167751]
[1723736041710,0.00554299,59613.0,59612.0,0.905955]
[1723736042030,0.0751,59625.0,59612.0,0.905955]
[1723736042031,0.00554299,59621.0,59620.0,0.167728]
[1723736042229,0.167721,59623.0,59620.0,0.167728]
[1723736042447,0.00554299,59622.0,59620.0,0.167728]
[1723736042788,0.00554299,59622.0,59612.0,0.335499]
[1723736042789,0.167747,59614.0,59611.0,0.167753]
[1723736042899,0.0751,59620.0,59611.0,0.335507]
[1723736042900,0.08577727,59616.0,59611.0,0.335507]
[1723736043106,0.0751,59620.0,59614.0,0.503236]
[1723736043107,0.0055425,59615.0,59614.0,0.503236]
[1723736043394,0.0055425,59619.0,59616.0,0.335478]
[1723736043780,0.0055425,59619.0,59617.0,0.167737]
[1723736044058,0.08577727,59617.0,59616.0,0.167739]
[1723736044441,0.08577727,59617.0,59598.0,0.07216405]
[1723736044442,0.09131983,59617.0,59598.0,0.07216405]
[1723736044639,0.08577727,59610.0,59602.0,0.17155454]
[1723736044835,0.08577727,59610.0,59609.0,0.503278]
[1723736045031,0.08577727,59610.0,59602.0,0.17155454]
[1723736045182,0.08577727,59610.0,59609.0,0.503278]
[1723736045389,0.08577727,59610.0,59609.0,0.167759]
[1723736045990,0.08577727,59610.0,59608.0,0.167762]
[1723736046622,0.1111304,59609.0,59596.0,0.0672]
[1723736046792,0.1111304,59609.0,59604.0,0.167773]
[1723736046793,0.0753,59607.0,59604.0,0.167773]
[1723736047003,0.0753,59607.0,59601.0,0.335562]
[1723736047004,0.16777,59606.0,59601.0,0.335562]
[1723736047255,0.0753,59607.0,59606.0,0.503304]
[1723736047488,0.0753,59607.0,59606.0,0.83884]
[1723736050264,0.0753,59607.0,59606.0,0.503304]
[1723736050413,0.0753,59607.0,59606.0,0.83884]
[1723736053058,0.0753,59607.0,59606.0,0.503304]
[1723736053261,0.0753,59607.0,59606.0,0.83884]
[1723736053482,0.08577727,59611.0,59610.0,0.503271]
[1723736053710,0.08577727,59611.0,59609.0,0.167759]
[1723736053907,0.25353127,59611.0,59608.0,0.167761]
[1723736054116,0.08577727,59611.0,59601.0,0.17155454]
[1723736054430,0.08577727,59611.0,59609.0,0.167758]
[1723736054635,0.42129027,59611.0,59604.0,0.335546]
[1723736054765,0.08577727,59605.0,59596.0,0.4692]
[1723736054969,0.0784,59604.0,59603.0,0.167776]
[1723736055175,0.0784,59604.0,59602.0,0.167778]
[1723736055468,0.0784,59609.0,59591.0,0.07720981]
[1723736055692,0.42806542,59627.0,59604.0,0.335547]
[1723736055693,0.0804,59615.0,59604.0,0.335547]
[1723736055875,0.08577727,59611.0,59604.0,0.335547]
[1723736056152,0.25353227,59611.0,59607.0,0.167762]
[1723736056306,0.25353227,59611.0,59608.0,0.167762]
[1723736056505,0.08577727,59611.0,59608.0,0.167762]
[1723736056716,0.00554325,59610.0,59608.0,0.167762]
[1723736057154,0.00554325,59610.0,59607.0,0.167765]
[1723736057354,0.00554325,59610.0,59608.0,0.16776]
[1723736057781,0.00554325,59610.0,59604.0,0.335544]
[1723736058123,0.0804,59609.0,59599.0,0.335575]
[1723736058343,0.00554325,59608.0,59606.0,0.167768]
[1723736058547,0.00554325,59608.0,59605.0,0.16777]
[1723736058765,0.00554325,59608.0,59606.0,0.167767]
[1723736059188,0.00554325,59608.0,59599.0,0.335575]
[1723736059189,0.335532,59607.0,59596.0,0.33559]
[1723736059395,0.00554325,59606.0,59603.0,0.167774]
[1723736059623,0.00554325,59606.0,59602.0,0.335556]
[1723736059624,0.167768,59606.0,59602.0,0.335556]
[1723736059863,0.00554329,59605.0,59604.0,0.167772]
[1723736060073,0.00554329,59608.0,59597.0,0.17155454]
[1723736060282,0.00554329,59608.0,59607.0,0.503296]
[1723736060509,0.167767,59607.0,59603.0,0.167774]
[1723736060711,0.00554329,59606.0,59605.0,0.503313]
[1723736060926,0.00354329,59608.0,59606.0,0.167766]
[1723736061174,0.167764,59608.0,59604.0,0.503316]
[1723736061401,0.248161,59609.0,59606.0,0.167766]
[1723736061615,0.0804,59609.0,59604.0,0.335545]
[1723736061823,0.167763,59608.0,59605.0,0.16777]
[1723736062035,0.167763,59608.0,59602.0,0.335558]
[1723736062036,0.335531,59607.0,59602.0,0.335558]
[1723736062240,0.227782,59601.0,59598.0,0.167789]
[1723736062440,0.0774,59600.0,59597.0,0.16779]
[1723736062655,0.0774,59600.0,59598.0,0.16779]
[1723736062862,0.0774,59600.0,59598.0,0.167788]
[1723736062974,0.0774,59600.0,59599.0,0.167788]
[1723736063182,0.0774,59600.0,59599.0,0.503364]
[1723736063618,0.0774,59600.0,59599.0,0.167788]
[1723736063874,0.0774,59600.0,59599.0,0.83894]
[1723736064292,0.0774,59600.0,59599.0,1.12794824]
[1723736064613,0.0821,59606.0,59605.0,0.167771]
[1723736064815,0.0821,59606.0,59599.0,0.17155454]
[1723736065056,0.0821,59606.0,59605.0,0.503313]
[1723736065599,0.0821,59606.0,59605.0,0.838855]
[1723736065726,0.0821,59606.0,59605.0,0.9227412]
[1723736066129,0.31753227,59611.0,59610.0,0.167757]
[1723736066130,0.1397,59611.0,59610.0,0.167757]
[1723736066360,0.1397,59611.0,59610.0,0.503271]
[1723736066583,0.09895776,59617.0,59610.0,0.838785]
[1723736066746,0.09895776,59617.0,59605.0,0.17155454]
[1723736066747,0.0791,59616.0,59605.0,0.17155454]
[1723736066959,0.0791,59616.0,59615.0,0.167743]
[1723736067813,0.0791,59616.0,59615.0,0.503229]
[1723736069142,0.079926,59616.0,59615.0,0.503229]
[1723736071319,0.079926,59616.0,59615.0,0.167743]
[1723736072286,0.079926,59616.0,59609.0,0.335519]
[1723736072508,0.01317771,59615.0,59610.0,0.17155454]
[1723736072721,0.01317771,59614.0,59613.0,0.167747]
[1723736072923,0.00554318,59614.0,59613.0,0.167747]
[1723736073097,0.00554318,59614.0,59610.0,0.50706454]
[1723736073298,0.01872093,59613.0,59611.0,0.335507]
[1723736073500,0.01872093,59613.0,59607.0,0.0009086]
[1723736073501,0.00554316,59612.0,59607.0,0.0009086]
[1723736073700,0.00554316,59612.0,59607.0,0.1686736]
[1723736073701,0.08577727,59608.0,59607.0,0.1686736]
[1723736073859,0.09132043,59608.0,59607.0,0.5042046]
[1723736074069,0.09132043,59608.0,59607.0,0.1686736]
[1723736074466,0.09132043,59608.0,59607.0,0.5042046]
[1723736075821,0.09132043,59608.0,59607.0,0.5147563]
[1723736076076,0.09132043,59608.0,59607.0,0.0114603]
[1723736076277,0.14117488,59608.0,59607.0,0.0114603]
[1723736077286,0.09132043,59608.0,59607.0,0.1792253]
[1723736077490,0.14131792,59608.0,59607.0,0.5147563]
[1723736077919,0.09132043,59608.0,59607.0,0.5147563]
[1723736078120,0.14131792,59608.0,59607.0,0.5147563]
[1723736078319,0.09132043,59608.0,59607.0,0.5147563]
[1723736078698,0.09132043,59608.0,59607.0,0.1792253]
[1723736078926,0.09132052,59608.0,59607.0,0.1792253]
[1723736079173,0.14131801,59608.0,59607.0,0.1792253]
[1723736079791,0.14131801,59608.0,59607.0,0.5147563]
[1723736080149,0.14131801,59608.0,59607.0,1.02184184]
[1723736080150,0.05556365,59608.0,59607.0,1.02184184]
[1723736080351,0.00554325,59608.0,59607.0,1.49311142]
[1723736080576,0.00554325,59608.0,59607.0,1.35737284]
[1723736080783,0.00554325,59608.0,59607.0,0.68631084]
[1723736080983,0.00554325,59608.0,59607.0,0.0114603]
[1723736080984,0.0555659,59608.0,59607.0,0.0114603]
[1723736081209,0.08057723,59608.0,59607.0,0.0114603]
[1723736081842,0.08057723,59608.0,59607.0,0.1792253]
[1723736082265,0.00554325,59608.0,59607.0,0.1792253]
[1723736082421,1.66780616,59608.0,59607.0,0.0114603]
[1723736082599,1.66780616,59608.0,59607.0,0.0009086]
[1723736082600,1.8060363,59608.0,59607.0,0.0009086]
[1723736083220,1.4705113,59608.0,59607.0,0.0009086]
[1723736083823,1.64206584,59608.0,59607.0,0.0009086]
[1723736084052,1.4705113,59608.0,59607.0,0.0009086]
[1723736084428,1.8060363,59608.0,59607.0,0.0009086]
[1723736085295,1.8050482,59608.0,59607.0,0.0009086]
[1723736085495,1.4695232,59608.0,59607.0,0.0009086]
[1723736086563,1.46951815,59608.0,59607.0,0.0009086]
[1723736086921,1.46951608,59608.0,59607.0,0.0009086]
[1723736088997,1.13399108,59608.0,59607.0,0.0009086]
[1723736089204,0.79846608,59608.0,59607.0,0.0009086]
[1723736089407,0.55663798,59608.0,59607.0,0.0114603]
[1723736089603,0.35386693,59608.0,59607.0,0.5147563]
[1723736089736,0.27329265,59608.0,59607.0,0.0114603]
[1723736089938,0.50883054,59608.0,59607.0,0.0114603]
[1723736090137,0.85715393,59608.0,59607.0,0.0009086]
[1723736090682,0.98222498,59608.0,59607.0,0.0009086]
[1723736091648,0.98222498,59608.0,59607.0,0.0114603]
[1723736091868,0.98222498,59608.0,59607.0,0.0009086]
[1723736092072,0.64669998,59608.0,59607.0,0.0009086]
[1723736092277,0.98222498,59608.0,59607.0,0.0114603]
[1723736093861,0.98222498,59608.0,59607.0,0.1792253]
[1723736093862,0.47893798,59608.0,59607.0,0.1792253]
[1723736094044,0.05554501,59608.0,59607.0,0.8502873]
[1723736094196,0.05554582,59608.0,59607.0,0.8502873]
[1723736094401,0.08054696,59608.0,59607.0,0.8502873]
[1723736094799,0.00554354,59608.0,59607.0,0.8502873]
[1723736094999,0.00554354,59608.0,59607.0,0.0114603]
[1723736095223,0.00554354,59608.0,59607.0,0.1792253]
[1723736095224,0.1055481,59608.0,59607.0,0.1792253]
[1723736095436,0.00554354,59608.0,59607.0,0.1792253]
[1723736095638,0.35629075,59608.0,59607.0,0.1686736]
[1723736095841,0.42997103,59608.0,59607.0,0.0114603]
[1723736096040,0.72735845,59608.0,59607.0,0.0114603]
[1723736096214,1.06288345,59608.0,59607.0,0.0009086]
[1723736096426,0.93787775,59608.0,59607.0,0.0114603]
[1723736096855,0.61551885,59608.0,59607.0,0.0114603]
[1723736097068,0.43459075,59608.0,59607.0,0.3469913]
[1723736097218,0.10553767,59608.0,59607.0,0.5147563]
[1723736097416,0.45617745,59608.0,59607.0,0.5147563]
[1723736098451,0.45617724,59608.0,59607.0,0.5147563]
[1723736099088,0.45617724,59608.0,59607.0,0.1792253]
[1723736099314,0.45617724,59608.0,59607.0,0.8502873]
[1723736099525,0.00554333,59608.0,59607.0,1.14051643]
[1723736099751,0.00554333,59608.0,59607.0,1.02184184]
[1723736100172,0.08056712,59608.0,59607.0,0.35077984]
[1723736100344,0.08056712,59608.0,59607.0,0.0114603]
[1723736100345,0.43430476,59608.0,59607.0,0.0114603]
[1723736100562,0.71292185,59608.0,59607.0,0.0114603]
[1723736100766,1.17345255,59608.0,59607.0,0.0009086]
[1723736100962,1.50897755,59608.0,59607.0,0.0009086]
[1723736101384,1.39713309,59608.0,59607.0,0.0009086]
[1723736101648,1.37842852,59608.0,59607.0,0.0009086]
[1723736101796,1.38397206,59608.0,59607.0,0.0009086]
[1723736102304,1.39712126,59608.0,59607.0,0.0009086]
[1723736102503,1.35166617,59608.0,59607.0,0.0009086]
[1723736104556,1.35166617,59608.0,59607.0,0.0114603]
[1723736104758,1.01614117,59608.0,59607.0,0.0114603]
[1723736104958,0.55920836,59608.0,59607.0,0.0114603]
[1723736105222,0.55920836,59608.0,59607.0,0.5147563]
[1723736105223,0.35046143,59608.0,59607.0,0.5147563]
[1723736105442,0.10546668,59608.0,59607.0,0.5147563]
[1723736106122,0.1062876,59608.0,59607.0,0.5147563]
[1723736106415,0.45596769,59608.0,59607.0,0.5147563]
[1723736106844,0.45596769,59608.0,59607.0,0.0114603]
[1723736107050,0.62372969,59608.0,59607.0,0.0114603]
[1723736107259,0.85933648,59608.0,59607.0,0.0114603]
[1723736107506,0.45590908,59608.0,59607.0,0.3364396]
[1723736107711,0.45590908,59608.0,59607.0,0.5147563]
[1723736107883,0.45590908,59608.0,59607.0,0.1792253]
[1723736108087,0.62367108,59608.0,59607.0,0.0114603]
[1723736108484,0.95919608,59608.0,59607.0,0.0114603]
[1723736108691,0.87248471,59608.0,59607.0,0.0009086]
[1723736108865,0.52381148,59608.0,59607.0,0.0009086]
[1723736109079,0.52381149,59608.0,59607.0,0.0009086]
[1723736109277,0.85933649,59608.0,59607.0,0.0009086]
[1723736109479,1.34202858,59608.0,59607.0,0.0114603]
[1723736109702,1.01964965,59608.0,59607.0,0.0009086]
[1723736109926,1.34202858,59608.0,59607.0,0.0009086]
[1723736110121,1.35517465,59608.0,59607.0,0.0009086]
[1723736110449,1.23027688,59608.0,59607.0,0.0009086]
[1723736111065,1.36947688,59608.0,59607.0,0.0114603]
[1723736111276,1.57447078,59608.0,59607.0,0.0114603]
[1723736111484,1.174358,59607.0,59606.0,0.0009086]
[1723736111692,2.33446774,59607.0,59606.0,0.0009086]
[1723736111885,1.91215118,59607.0,59606.0,0.0009086]
[1723736112040,1.42677685,59607.0,59606.0,0.0009086]
[1723736112475,1.39429046,59607.0,59606.0,0.0009086]
[1723736112864,1.41426513,59607.0,59606.0,0.0009086]
[1723736113070,1.28930899,59607.0,59606.0,0.0009086]
[1723736113373,1.39431023,59607.0,59606.0,0.0009086]
[1723736113752,1.28930899,59607.0,59606.0,0.0009086]
[1723736114057,0.49337626,59607.0,59606.0,0.0009086]
[1723736114298,0.05555152,59607.0,59606.0,0.67576714]
[1723736114490,0.00554378,59607.0,59606.0,1.02010543]
[1723736114606,0.00554378,59607.0,59606.0,1.35564143]
[1723736115402,0.00554378,59607.0,59606.0,1.02010543]
[1723736115588,0.05555152,59607.0,59606.0,1.02010543]
[1723736115775,0.05555152,59607.0,59606.0,0.68456943]
[1723736116094,0.00554378,59607.0,59606.0,0.68456943]
[1723736116229,0.00554378,59607.0,59606.0,1.02010543]
[1723736116230,0.05557925,59607.0,59606.0,1.02010543]
[1723736116431,0.05003547,59607.0,59606.0,1.02010543]
[1723736116707,0.05557873,59607.0,59606.0,1.02010543]
[1723736117060,0.00554326,59607.0,59606.0,0.68456943]
[1723736117259,0.10082526,59608.0,59607.0,0.503296]
[1723736117608,0.45073754,59608.0,59607.0,0.00879308]
[1723736117757,0.42693828,59608.0,59607.0,0.00879308]
[1723736118319,1.13312728,59608.0,59607.0,0.00879308]
[1723736118520,0.79760228,59608.0,59607.0,0.00879308]
[1723736118718,1.13312728,59608.0,59607.0,0.00879308]
[1723736118922,1.13292408,59608.0,59607.0,0.00879308]
[1723736119774,1.46844908,59608.0,59607.0,0.00879308]
[1723736119927,1.14609506,59608.0,59607.0,0.00879308]
[1723736120133,1.13292408,59608.0,59607.0,0.00879308]
[1723736120287,1.13292414,59608.0,59607.0,0.00879308]
[1723736121065,0.47552941,59608.0,59607.0,0.17655808]
[1723736121216,0.35034427,59608.0,59607.0,0.84762008]
[1723736121431,0.45050478,59608.0,59607.0,0.84762008]
[1723736121860,0.00636952,59608.0,59607.0,0.84762008]
[1723736122062,0.09214679,59608.0,59607.0,0.51208908]
[1723736122213,0.09214679,59608.0,59607.0,0.17655808]
[1723736122953,0.09214679,59608.0,59607.0,0.51208908]
[1723736123175,0.09214679,59608.0,59607.0,0.00879308]
[1723736123401,0.32520933,59608.0,59607.0,0.00879308]
[1723736123578,0.167765,59607.0,59606.0,0.0009086]
[1723736123779,0.0806599,59607.0,59606.0,0.0009086]
[1723736124035,0.00554352,59607.0,59606.0,0.0009086]
[1723736124183,0.05561062,59607.0,59606.0,0.51301489]
[1723736124516,0.05561686,59607.0,59606.0,0.51301489]
[1723736125161,0.05561686,59607.0,59606.0,0.84855089]
[1723736125360,0.05541495,59607.0,59606.0,0.84855089]
[1723736125536,0.05541495,59607.0,59606.0,0.17747889]
[1723736125715,0.05541495,59607.0,59606.0,0.51301489]
[1723736125716,0.0053412,59607.0,59606.0,0.51301489]
[1723736127110,0.0053412,59607.0,59606.0,0.84855089]
[1723736127425,0.05536346,59607.0,59606.0,0.84855089]
[1723736127619,0.05536346,59607.0,59606.0,1.35564143]
[1723736127860,0.07594238,59608.0,59606.0,0.31406543]
[1723736127861,0.000826,59608.0,59606.0,0.31406543]
[1723736128036,0.05002226,59615.0,59614.0,0.503236]
[1723736128253,0.07594238,59616.0,59615.0,0.570429]
[1723736128254,0.000826,59616.0,59615.0,0.570429]
[1723736128475,0.000826,59616.0,59615.0,1.41295554]
[1723736128682,0.000826,59616.0,59615.0,2.09534191]
[1723736128897,0.000826,59616.0,59615.0,1.75985591]
[1723736129087,0.000826,59616.0,59615.0,2.69564547]
[1723736129313,0.000826,59616.0,59615.0,2.77156309]